Workbook

Sheet Sheet1
E1: 2022 Brush Country GCD Effective Tax Rate and Tax Rollover Worksheet | N1: 2022 Brush Country GCD Effective Tax Rate and Tax Rollover Worksheet
H2: Brooks | I2: Jim Hogg | J2: Jim wells | K2: Hidalgo | L2: total | V2: total
A3: 1 | B3: 2021 total Taxable value | H3: 433439633 | I3: 446018450 | J3: 1393120800 | K3: 2807296 | L3: =SUM($H$3:$K$3) -> 2275386179 | N3: 1 | O3: 2021 total Taxable value | V3: =SUM($H$3:$K$3) -> 2275386179
A5: 2 | B5: 2021 Tax Ceilings School Districts | N5: 2 | O5: 2021 Tax Ceilings School Districts
C6: 2021 taxable value over 65 homestead w/tax ceiling | H6: 0 | I6: 0 | J6: 0 | K6: 0 | L6: =SUM($H$6:$K$6) -> 0 | P6: 2021 taxable value over 65 homestead w/tax ceiling | V6: =SUM($H$6:$K$6) -> 0
C7: 2021 over 65 tax ceiling or actual tax(if available) | H7: 0 | I7: 0 | J7: 0 | K7: 0 | L7: =SUM($H$7:$K$7) -> 0 | P7: 2021 over 65 tax ceiling or actual tax(if available) | V7: =SUM($H$7:$K$7) -> 0
K8: total | L8: =$L$6+$L$7 -> 0 | V8: =$L$6+$L$7 -> 0
A9: 3 | B9: Preliminary 2021 Adjusted tax rate subtract line 2 form 1 | L9: =$L$3-$L$8 -> 2275386179 | N9: 3 | O9: Preliminary 2021 Adjusted tax rate subtract line 2 form 1 | V9: =V3-V8 -> 2275386179
H10: -- | I10: -- | J10: -- | K10: -- | L10: -- | U10: -- | V10: --
A11: 4 | B11: 2021 adopted tax M & O Tax Rate | H11: -- | I11: -- | J11: -- | K11: -- | L11: 0.016 | M11: /$100 | N11: 4 | O11: 2021 adopted tax M & O Tax Rate | U11: -- | V11: 0.016 | W11: /$100
B12: 2021 IRS Tax Rate | H12: -- | I12: -- | J12: -- | K12: -- | O12: 2021 IRS Tax Rate | U12: --
B13: Total Rate | H13: 0 | L13: 0.016 | M13: /$100 | O13: Total Rate | V13: 0.016 | W13: /$100
A15: 5 | B15: 2021 value lost due to court appeals | H15: -- | I15: -- | J15: -- | K15: -- | L15: -- | N15: 5 | O15: 2021 value lost due to court appeals | U15: -- | V15: --
B16: A. original 2021 ARB Value | L16: 0 | O16: A. original 2021 ARB Value | V16: 0
B17: B. 2021 value loss resulting from final court decisions | L17: 0 | O17: B. 2021 value loss resulting from final court decisions | V17: 0
B18: C. 2021 Value loss subtract B from A | H18: 0 | I18: =I16-I17 -> 0 | J18: =J16-J17 -> 0 | K18: =K16-K17 -> 0 | L18: =$L$16-$L$17 -> 0 | O18: C. 2021 Value loss subtract B from A | V18: =$L$16-$L$17 -> 0
A19: 6 | B19: 2021 taxable value adjusted for court reduction add 3 & 5c | L19: =$L$9+$L$18 -> 2275386179 | N19: 6 | O19: 2021 taxable value adjusted for court reduction add 3 & 5c | V19: =$V$9+$V$18 -> 2275386179
A20: 7 | B20: 2021 tax value lost through de-annex after Jan 1, 2021 | L20: =SUM($H$20:$K$20) -> 0 | N20: 7 | O20: 2021 tax value lost through de-annex after Jan 1, 2021 | V20: =SUM($H$20:$K$20) -> 0
A21: 8 | B21: 2021 tax value lost due to property exempt qualify in 2022 | H21: -- | I21: -- | J21: -- | K21: -- | L21: -- | N21: 8 | O21: 2021 tax value lost due to property exempt qualify in 2021 | U21: -- | V21: -- | W21: 0
B22: A. absolute exemptions use 2021 market value | H22: 735010 | I22: 36490 | J22: 359059 | K22: 0 | L22: =SUM($H$22:$K$22) -> 1130559 | O22: A. absolute exemptions use 2021 market value | V22: =SUM($H$22:$K$22) -> 1130559
B23: B. partial exemptions 2022 exemp or 2022% times 2021 value | H23: 155017 | I23: 362960 | J23: 4276601 | K23: 0 | L23: =SUM($H$23:$K$23) -> 4794578 | O23: B. partial exemptions 2022 exemp or 2022% times 2021 value | V23: =SUM($H$23:$K$23) -> 4794578
B24: C. value loss A + B | H24: =H22+H23 -> 890027 | I24: =I22+I23 -> 399450 | J24: =J22+J23 -> 4635660 | K24: =K22+K23 -> 0 | L24: =SUM($H$24:$K$24) -> 5925137 | O24: C. value loss A + B | V24: =SUM($H$24:$K$24) -> 5925137
A25: 9 | B25: 2021 tax value lost due to first qualified for ag or special app | H25: -- | I25: -- | J25: -- | K25: -- | L25: -- | N25: 9 | O25: 2021 tax value lost due to first qualified for ag or special app | U25: -- | V25: --
B26: a. 2021 Market value | H26: 7677684 | I26: 0 | J26: 2579848 | K26: 0 | L26: =SUM($H$26:$K$26) -> 10257532 | O26: a. 2021 Market value | V26: =L26 -> 10257532
B27: b. 2022 productivity or special appraised value | H27: 652977 | I27: 0 | J27: 244837 | K27: 0 | L27: =SUM($H$27:$K$27) -> 897814 | O27: b. 2022 productivity or special appraisaed value | V27: =L27 -> 897814
B28: c. Value lost subtract B from A | H28: =H26-H27 -> 7024707 | I28: =I26-I27 -> 0 | J28: 2609292 | K28: =K26-K27 -> 0 | L28: =$L$26-$L$27 -> 9359718 | O28: c. Value lost subtract B from A | V28: =$V$26-$V$27 -> 9359718
A29: 10 | B29: Total adjustments for lost value add lines 7, 8C & 9C | H29: =H20+H24+H28 -> 7914734 | I29: =I20+I24+I28 -> 399450 | J29: =J20+J24+J28 -> 7244952 | K29: =K20+K24+K28 -> 0 | L29: =$L$20+$L$24+$L$28 -> 15284855 | N29: 10 | O29: Total adjustments for lost value add lines 7, 8C & 9C | V29: =$V$24+$V$28 -> 15284855
A30: 11 | B30: 2021 adjusted taxable value subtract line 10 from line 6 | H30: -- | I30: -- | J30: -- | K30: -- | L30: =$L$19-$L$29 -> 2260101324 | N30: 11 | O30: 2021 adjusted taxable value subtract line 10 from line 6 | U30: -- | V30: =$V$19-$V$29 -> 2260101324
A31: 12 | B31: Adjusted 2021 taxes multiply line 4 by line 11 and divide by $100 | H31: 0 | I31: 0 | J31: 0 | K31: 0 | L31: =ROUNDDOWN($L$11*$L$30/100,0) -> 361616 | N31: 12 | O31: Adjusted 2021 taxes multiply line 4 by line 11 and divide by $100 | U31: -- | V31: =ROUNDDOWN($V$11*$V$30/100,0) -> 361616
A32: 13 | B32: enter refunded taxes for buget year for taxes preceding 2021 | H32: 0 | I32: 0 | J32: 23 | K32: 0 | L32: =SUM(H32:K32) -> 23 | N32: 13 | O32: enter refunded taxes for buget year for taxes preceding 2021 | V32: =L32 -> 23
A33: 14 | B33: Taxes in increment financing(TIF) for tax year 2021 | H33: 0 | I33: 0 | J33: 0 | K33: 0 | L33: =SUM($H$33:$K$33) -> 0 | N33: 14 | O33: Taxes in increment financing(TIF) for tax year 2021 | V33: =SUM($H$33:$K$33) -> 0
A34: 15 | B34: adjusted 2021 taxes with refund & TIF Adj add line 12&13-14 | H34: =H31+H32+H33 -> 0 | I34: =I31+I32+I33 -> 0 | J34: =J31+J32+J33 -> 23 | K34: =K31+K32+K33 -> 0 | L34: =$L$31+$L$32-$L$33 -> 361639 | N34: 15 | O34: adjusted 2021 taxes with refund & TIF Adj add line 12&13-14 | U34: -- | V34: =V31+V32+V33 -> 361639
A35: 16 | B35: Total 2022 taxable value on the 2022 certified roll today | H35: -- | I35: -- | J35: -- | K35: -- | L35: -- | N35: 16 | O35: Total 2022 taxable value on the 2022 certified roll today | U35: -- | V35: --
B36: A. Certified Values | H36: 447314861 | I36: 427739791 | J36: 1474769538 | K36: 2633723 | L36: =SUM($H$36:$K$36) -> 2352457913 | O36: A. Certified Values | V36: =SUM($H$36:$K$36) -> 2352457913
B37: B. Counties: Railroad Rolling Stock | H37: 0 | I37: 0 | J37: 0 | K37: 0 | L37: =SUM($H$37:$K$37) -> 0 | O37: B. Counties: Railroad Rolling Stock | V37: =SUM($H$37:$K$37) -> 0
B38: C. Pollution Control Exemption | H38: 0 | I38: 0 | J38: 0 | K38: 0 | L38: =SUM($H$38:$K$38) -> 0 | O38: C. Pollution Control Exemption | V38: =SUM($H$38:$K$38) -> 0
B39: D. Tax Increment financing | H39: 0 | I39: 0 | J39: 0 | K39: 0 | L39: =SUM($H$39:$K$39) -> 0 | O39: D. Tax Increment financing | V39: =SUM($H$39:$K$39) -> 0
B40: E. Total 2022 value add A, thru D | H40: =SUM(H36:H39) -> 447314861 | I40: =SUM(I36:I39) -> 427739791 | J40: =SUM(J36:J39) -> 1474769538 | K40: =SUM(K36:K39) -> 2633723 | L40: =SUM($L$36:$L$39) -> 2352457913 | O40: E. Total 2022 value add A, thru D | V40: =SUM(V36:W39) -> 2352457913
A41: 17 | B41: Total Value of Properties under protest | H41: -- | I41: -- | J41: -- | K41: -- | L41: -- | N41: 17 | O41: Total Value of Properties under protest | U41: -- | V41: --
B42: A. 2022 taxable value of properties under protest | H42: 0 | I42: 38580180 | J42: 4670020 | K42: 0 | L42: =SUM($H$42:$K$42) -> 43250200 | O42: A. 2022 taxable value of properties under protest | V42: =SUM($H$42:$K$42) -> 43250200
B43: B. 2022 value of properties not under protest or included on app. Roll | H43: 0 | I43: 0 | J43: 0 | K43: 0 | L43: =SUM($H$43:$K$43) -> 0 | O43: B. 2022 value of properties not under protest or included on app. Roll | V43: =SUM($H$43:$K$43) -> 0
B44: C. Total Value under protest or not certified add A & B | H44: =SUM(H42:H43) -> 0 | I44: =SUM(I42:I43) -> 38580180 | J44: =SUM(J42:J43) -> 4670020 | K44: =SUM(K42:K43) -> 0 | L44: =$L$42+$L$43 -> 43250200 | O44: C. Total Value under protest or not certified add A & B | V44: =V42+V43 -> 43250200
A45: 18 | B45: 2022 Tax ceilings | H45: -- | I45: -- | J45: -- | K45: -- | L45: -- | N45: 18 | O45: 2022 Tax ceilings | U45: -- | V45: --
B46: 2022 taxable value over 65 homestead w/tax ceiling | H46: 0 | I46: 0 | J46: 0 | K46: 0 | L46: =SUM($H$46:$K$46) -> 0 | O46: 2022 taxable value over 65 homestead w/tax ceiling | V46: =SUM($H$46:$K$46) -> 0
B47: 2022 over 65 tax ceiling or actual tax(if available) | O47: 2022 over 65 tax ceiling or actual tax(if available)
A48: 19 | B48: 2022 total taxable value add lines 16E &17C minus line 18 | H48: -- | I48: -- | J48: -- | K48: -- | L48: =$L$40+$L$44-$L$46 -> 2395708113 | N48: 19 | O48: 2022 total taxable value add lines 16E &17C minus line 18 | U48: -- | V48: =V40+V44-V46 -> 2395708113
A49: 20 | B49: Total 2022 taxable value of properties in territory annexed after jan 1,2021 | H49: 0 | I49: 0 | J49: 0 | K49: 0 | L49: =SUM($H$49:$K$49) -> 0 | N49: 20 | O49: Total 2022 taxable value of properties in territory annexed after jan 1,2021 | V49: =SUM($H$49:$K$49) -> 0
A50: 21 | B50: total 2022 tax value of new improve & new personal prop in new Improv | H50: 7294368 | I50: 3135610 | J50: 15902915 | K50: 0 | L50: =SUM($H$50:$K$50) -> 26332893 | N50: 21 | O50: total 2022 tax value of new improve & new personal prop in new Improv | V50: =SUM($H$50:$K$50) -> 26332893
A51: 22 | B51: total asjustments to the 2022 taxable value add lines20 & 21 | H51: =H49+H50 -> 7294368 | I51: =I49+I50 -> 3135610 | J51: =J49+J50 -> 15902915 | K51: =K49+K50 -> 0 | L51: =$L$49+$L$50 -> 26332893 | N51: 22 | O51: total asjustments to the 2022 taxable value add lines20 & 21 | V51: =$L$49+$L$50 -> 26332893
A52: 23 | B52: 2022 adjusted taxable value subtract line 22 from line 19 | H52: -- | I52: -- | J52: -- | K52: -- | L52: =$L$48-$L$51 -> 2369375220 | N52: 23 | O52: 2022 adjusted taxable value subtract line 22 from line 19 | U52: -- | V52: =$L$48-$L$51 -> 2369375220
A53: 24 | B53: 2022 effective tax rate divide line 15 by line 23 times 100 | L53: =ROUNDDOWN($L$34/$L$52*100,6) -> 0.015263 | M53: /$100 | N53: 24 | O53: 2022 effective tax rate divide line 15 by line 23 times 100 | V53: =ROUNDDOWN($L$34/$L$52*100,6) -> 0.015263 | W53: /$100
B54: Brooks County figure for line 21 comes from new value market column (page 26&27) of brooks countycertified tax values
A56: 26 | B56: 2021 maintenance and operations (M&O) tax rate. | L56: =L11 -> 0.016 | M56: /$100 | N56: 26 | O56: 2021 maintenance and operations (M&O) tax rate. | V56: 0.016 | W56: /$100
A57: 27 | B57: 2021 adjusted taxable value. Enter the amount from Line 11. | L57: =$L$30 -> 2260101324 | N57: 27 | O57: 2021 adjusted taxable value. Enter the amount from Line 11. | V57: =V30 -> 2260101324
A58: 28 | B58: 2021 M&O taxes. | N58: 28 | O58: 2021 M&O taxes.
B59: A. Multiply Line 26 by Line 27 and divide by $100. | L59: =ROUNDDOWN($L$56*$L$57/100,0) -> 361616 | O59: A. Multiply Line 26 by Line 27 and divide by $100. | V59: =ROUNDDOWN(V57*V56/100,0) -> 361616
B60: B. Cities, counties and hospital districts with additional sales tax: Amount of additional | L60: =SUM($H$60:$K$60) -> 0 | O60: B. Cities, counties and hospital districts with additional sales tax: Amount of additional | V60: =SUM($H$60:$K$60) -> 0
B61: sales tax collected and spent on M&O expenses in 2021. Enter amount from full year's sales | O61: sales tax collected and spent on M&O expenses in 2021. Enter amount from full year's sales
B62: tax revenue spent for M&O in 2021 fiscal year, if any. Other units enter 0. Counties exclude | O62: tax revenue spent for M&O in 2021 fiscal year, if any. Other units enter 0. Counties exclude
B63: C. Counties: Enter the amount for the state criminal justice mandate. If second or later year, | L63: =SUM($H$63:$K$63) -> 0 | O63: C. Counties: Enter the amount for the state criminal justice mandate. If second or later year, | V63: =SUM($H$63:$K$63) -> 0
B64: the amount is for increased cost above last year's amount. Other units enter "0." | O64: the amount is for increased cost above last year's amount. Other units enter "0."
B65: D. Transferring function: If discontinuing all of a department, function or activity | L65: =SUM($H$65:$K$65) -> 0 | O65: D. Transferring function: If discontinuing all of a department, function or activity | V65: =SUM($H$65:$K$65) -> 0
B66: and transferring it to another unit by written contract, enter the amount spent by the unit | O66: and transferring it to another unit by written contract, enter the amount spent by the unit
B67: discontinuing the function in the 12 months preceding the month of this calculation. If the | O67: discontinuing the function in the 12 months preceding the month of this calculation. If the
B68: unit did not operate this function for this 12-month period, use the amount spent in the last | O68: unit did not operate this function for this 12-month period, use the amount spent in the last
B69: full fiscal year in which the unit operated the function. The unit discontinuing the function | O69: full fiscal year in which the unit operated the function. The unit discontinuing the function
B70: will subtract this amount in H below. The unit receiving the function will add this amount in | O70: will subtract this amount in H below. The unit receiving the function will add this amount in
B71: H below. Other units enter 0. | O71: H below. Other units enter 0.
B73: Enter a negative value if discontinuing a function, or enter a positive value if receiving | O73: Enter a negative value if discontinuing a function, or enter a positive value if receiving
B74: the function. | O74: the function.
B76: E. Taxes refunded for years preceding tax year 2021: Enter the amount of M&O taxes | L76: =L32 -> 23 | O76: E. Taxes refunded for years preceding tax year 2021: Enter the amount of M&O taxes | V76: =L76 -> 23
B77: refunded during the last budget year for tax years preceding tax year 2021. Types of refunds | O77: refunded during the last budget year for tax years preceding tax year 2021. Types of refunds
B78: include court decisions, Section 25.25(b) and (c) corrections and Section 31.11 payment | O78: include court decisions, Section 25.25(b) and (c) corrections and Section 31.11 payment
B79: errors. Do not include refunds for tax year 2021. This line applies only to tax years | O79: errors. Do not include refunds for tax year 2021. This line applies only to tax years
B80: preceding tax year 2021 | O80: preceding tax year 2021
B82: F. Enhanced indigent health care expenditures: Enter the increased amount for the | L82: =SUM($H$82:$K$82) -> 0 | O82: F. Enhanced indigent health care expenditures: Enter the increased amount for the | V82: =SUM($H$82:$K$82) -> 0
B83: current year's enhanced indigent health care expenditures above the preceding tax year's | O83: current year's enhanced indigent health care expenditures above the preceding tax year's
B84: enhanced indigent health care expenditures, less any state assistance. | O84: enhanced indigent health care expenditures, less any state assistance.
B86: G. Taxes in TIF: Enter the amount of taxes paid into the tax increment fund for a . | L86: =SUM($H$86:$K$86) -> 0 | O86: G. Taxes in TIF: Enter the amount of taxes paid into the tax increment fund for a . | V86: =SUM($H$86:$K$86) -> 0
B87: reinvestment zone as agreed by the taxing unit. If the unit has no 2022 captured appraised | O87: reinvestment zone as agreed by the taxing unit. If the unit has no 2022 captured appraised
B88: value in Line 16D, enter 0 | O88: value in Line 16D, enter 0
B90: H. Adjusted M&O Taxes. Add A, B, C, E and F. For unit with D, subtract if discontinuing | L90: =$L$59+$L$60+$L$63+$L$76+$L$82 -> 361639 | O90: H. Adjusted M&O Taxes. Add A, B, C, E and F. For unit with D, subtract if discontinuing | V90: =V59+V60+V63+V76+V82 -> 361639
B91: function and add if receiving function. Subtract G. | O91: function and add if receiving function. Subtract G.
A92: 2022 Property Tax Rates in Brush Country Groundwater Conservation District | N92: 2022 Property Tax Rates in Brush Country Groundwater Conservation District
A94: This notice concerns the 2022 property tax rates for Brush Country Groundwater Conservation | N94: This notice concerns the 2022 property tax rates for Brush Country Groundwater Conservation
A95: District. It presents information about three tax rates. Last year's tax rate is the actual tax rate | N95: District. It presents information about three tax rates. Last year's tax rate is the actual tax rate
A96: the taxing unit used to determine property taxes last year. This year's tax rate would | N96: the taxing unit used to determine property taxes last year. This year's tax rate would
A97: impose tile same total taxes as last year if you compare properties taxed in both years. This | N97: impose the same total taxes as last year if you compare properties taxed in both years. This
A98: year's rollback tax rate is the highest tax rate the taxing unit can set before taxpayers start | N98: year's rollback tax rate is the highest tax rate the taxing unit can set before taxpayers start
A99: rollback procedures. In each case these rates are found by dividing the total amount of taxes by | N99: rollback procedures. In each case these rates are found by dividing the total amount of taxes by
A100: the tax base (the total value of taxable property) with adjustments as required by state law. The | N100: the tax base (the total value of taxable property) with adjustments as required by state law. The
A101: rates are given per $100 or property value. | N101: rates are given per $100 or property value.
A103: Last year's tax rate: | O103: Last year's tax rate:
A104: Last year's operating taxes | F104: =ROUND($F$107*$L$56/100,0) -> 364084 | N104: 1 | O104: Last year's operating taxes | U104: =V56*V107/100 -> 364084
A105: Last year's debt taxes | F105: =$F$106-$F$104 -> 0 | N105: 2 | O105: Last year's debt taxes | U105: =$F$106-$F$104 -> 0
A106: Last years total taxes | F106: =ROUNDDOWN($L$19*$L$11/100+$L$32,0) -> 364084 | N106: 3 | O106: Last years total taxes | U106: =ROUNDDOWN(V11*V19/100+V32,0) -> 364084
A107: Last year's tax base | F107: =ROUND($F$106/$L$11*100,0) -> 2275525000 | N107: 4 | O107: Last year's tax base | V107: =ROUND($F$106/$L$11*100,0) -> 2275525000
A108: Last yeas total tax rate | F108: =$L$11 -> 0.016 | G108: /$100 | N108: 5 | O108: Last year's total tax rate | U108: 0.0245 | V108: 0.016 | W108: /$100
A110: This year's effective tax rate: | O110: This year's effective tax rate:
A111: last year adjusted tax values | F111: =$L$30 -> 2260101324 | N111: 6 | O111: last year adjusted tax values | V111: =F111 -> 2260101324
A112: Last year's adjusted taxes | F112: =$L$34 -> 361639 | N112: 7 | O112: Last year's adjusted taxes | V112: =V34 -> 361639
A113: (after subtracting taxes on lost property) | O113: (after subtracting taxes on lost property)
A114: : This year's adjusted tax base | F114: =$L$52 -> 2369375220 | N114: 8 | O114: : This year's adjusted tax base | V114: =V52 -> 2369375220
A115: (after subtracting value of new property | O115: (after subtracting value of new property
A116: =This year's effective tax rate | F116: =ROUNDDOWN($F$112/$F$114*100,6) -> 0.015263 | G116: /$100 | N116: 9 | O116: =This year's effective tax rate | V116: =ROUNDDOWN($V$112/$V$114*100,6) -> 0.015263 | W116: /$100
A117: (Maximum rate unless unit publishes notices and holds hearings) | O117: (Maximum rate unless unit publishes notices and holds hearings)
A119: This year's rollback tax rate: | O119: This year's rollback tax rate:
A120: Last years adjusted operating taxes | F120: =$F$112 -> 361639 | N120: 10 | O120: Last years adjusted operating taxes | V120: =V112 -> 361639
A121: (after subtracting taxes on lost property and adjusting for any | O121: (after subtracting taxes on lost property and adjusting for any
A122: transferred function, tax increment financing, state criminal justice | O122: transferred function, tax increment financing, state criminal justice
A123: mandate, and/or enhanced indigent healthcare expenditures) | O123: mandate, and/or enhanced indigent healthcare expenditures)
A124: - This year's adjusted tax base | F124: =$F$114 -> 2369375220 | N124: 11 | O124: - This year's adjusted tax base | V124: =V114 -> 2369375220 | W124: /$100
A125: -This year's effective operating rate | F125: =$F$116 -> 0.015263 | G125: /$100 | N125: 12 | O125: -This year's effective operating rate | V125: =V116 -> 0.015263 | W125: /$100
A126: x 1.08 - this year's maximum operating rate | F126: =ROUNDDOWN($F$125*1.08,6) -> 0.016484 | G126: /$100 | N126: 13 | O126: x 1.08 - this year's maximum operating rate | V126: =ROUNDDOWN(V125*1.08,6) -> 0.016484 | W126: /$100
A127: - This year's debt rate | F127: 0 | G127: /$100 | O127: - This year's debt rate | V127: 0 | W127: /$100
A128: = This year's total rollback rate | F128: =$F$126 -> 0.016484 | G128: /$100 | N128: 14 | O128: = This year's total rollback rate | V128: =V126 -> 0.016484 | W128: /$100
A130: Statement of Increase/Decrease | N130: Statement of Increase/Decrease
A131: If Brush Country Groundwater Conservation District adopts a 2022 tax rate equal to the | N131: If Brush Country Groundwater Conservation District adopts a 2022 tax rate equal to the
A132: effective tax rate of $0.025399 per $100 value, taxes would increase compared to 2021 taxes | N132: effective tax rate of | P132: =V125 -> 0.015263 | Q132: per $100 value, taxes would increase compared to 2021 taxes
A133: by | B133: =ROUNDDOWN(($L$48*$F$116/100)-($F$107*$F$108/100),0) -> 1572 | J133: 2022 levy | K133: 2021 levy | N133: by | O133: =ROUNDDOWN((V48*V116/100)-(V107*V108/100),0) -> 1572
J134: =V48*V116/100 -> 365656.9293 | K134: =V107*U108/100 -> 557503.625 | L134: =J134-K134 -> -191846.6957
A135: Schedule A - Unencumbered Fund Balance | N135: Schedule A - Unencumbered Fund Balance
A136: The following estimated balances will be left in the unit's property tax accounts at the end of | N136: The following estimated balances will be left in the unit's property tax accounts at the end of
A137: the fiscal year. These balances are not encumbered by a corresponding debt obligation | N137: the fiscal year. These balances are not encumbered by a corresponding debt obligation
A138: Type of Property Tax Fund Balance | E138: Balance | N138: Type of Property Tax Fund Balance | R138: Balance
A139: Ceneral Fund | E139: 574254 | N139: General Fund | R139: 574254
A141: Schedule B - 2022 Debt Service | N141: Schedule B - 2022 Debt Service
A142: The unit plans to pay the following amounts for long-term debts that are secured by properly | N142: The unit plans to pay the following amounts for long-term debts that are secured by properly
A143: taxes. These amounts will be paid from property tax revenues (or additional sales tax revenues, | N143: taxes. These amounts will be paid from property tax revenues (or additional sales tax revenues,
A144: if applicable). | N144: if applicable).
C146: Pricipal or Contract | E146: interest to be | F146: Other Amounts | P146: Principal or Contract | R146: interest to be | S146: Other Amounts
A147: Description of Debt | C147: Payment to be Paid | E147: Paid from | F147: to be Paid | H147: Total Payment | N147: Description of Debt | P147: Payment to be Paid | R147: Paid from | S147: to be Paid | U147: Total Payment
C148: from Property Taxes | E148: Property Taxes | P148: from Property Taxes | R148: Property Taxes
C149: 0 | E149: 0 | F149: 0 | H149: 0 | O149: None | P149: 0 | R149: 0 | S149: 0 | U149: 0 | V149: 0
A151: Total required for 2022 debt service | H151: 0 | N151: Total required for 2022 debt service | U151: 0
A152: - Amount (if any) paid from Schedule A | H152: 0 | N152: - Amount (if any) paid from Schedule A | U152: 0
A153: - Amount Of any) paid front other resources | H153: 0 | N153: - Amount Of any) paid front other resources | U153: 0
A154: - Excess collections last year | H154: 0 | N154: - Excess collections last year | U154: 0
A155: = Total to be paid from taxes in 2021 | H155: 0 | N155: = Total to be paid from taxes in 2021 | U155: 0
A156: - Amount added in anticipation that the unit will | H156: 0 | N156: - Amount added in anticipation that the unit will | U156: 0
A157: collect only 100.00% of its taxes in 2022 | N157: collect only 100.00% of its taxes in 2022
A158: = Total debt levy | H158: 0 | N158: = Total debt levy | U158: 0
A159: Name of person preparing this notice: Felix Saenz | N159: Name of person preparing this notice: Felix Saenz
A160: Title: General Manager | N160: Title: General Manager | O160: BCGCD Consultant
A161: Date Prepared: | N161: Date Prepared: 8/27/2022
C164: 2022 GOVERNING BODY SUMMARY #1B8 | P164: 2022 GOVERNING BODY SUMMARY #1B8
C165: Comparison of This Year's Tax Levy with Last Years Tax Levy | P165: Comparison of This Year's Tax Levy with Last Years Tax Levy
D166: (Does Not Include Frozen Levy) | Q166: Does Not Include Frozen Levy
C167: Brush Country Groundwater Conservation District | P167: Brush Country Groundwater Conservation District
B169: Date: | O169: Date:
F171: Last Year's Tax Levy** | I171: =U104 -> 364084 | O171: Last Year Tax Base 1,994,040,816 | P171: =V$107 -> 2275525000 | R171: Last Year's Tax Levy** | V171: =U104 -> 364084
A172: Description of | C172: Tax per $100 | E172: This Years Tax Levy | G172: Tax Levy Increase | N172: Description of | S172: This Years | V172: Tax Levy Increase
A173: Tax rate | N173: Tax rate | Q173: Tax per $100 | S173: Tax Levy | U173: or decrease
A174: Last Year Tax Rate | C174: 0.016 | E174: =$L$48*$F$108/100 -> 383313.2981 | G174: =ROUND(($L$48*$F$108/100)-($F$106-$F$108),0) -> 19229 | H174: =ROUNDDOWN(($L$48*$F$116/100)-($F$106-$F$108),0) -> 1572 | I174: =ROUNDDOWN(($L$48*$F$116/100)-($F$106-$F$108),0) -> 1572 | N174: Last Year Tax Rate | Q174: 0.016 | S174: =V48*F108/100 -> 383313.2981 | U174: =ROUND(($L$48*$F$108/100)-($F$106),0) -> 19229 | V174: =ROUNDDOWN(($L$48*$F$116/100)-($F$106-$F$108),0) -> 1572 | W174: 1572
A175: 2022 Effective tax rate | C175: =$F$125 -> 0.015263 | E175: =ROUND($L$48*$C$175/100,0) -> 365657 | G175: =ROUNDDOWN(($L$48*$F$116/100)-$F$106,0) -> 1572 | H175: =ROUNDDOWN(($L$48*$F$116/100)-($F$106-$F$108),0) -> 1572 | I175: =ROUNDDOWN(($L$48*$F$116/100)-($F$106-$F$108),0) -> 1572 | N175: 2022 Effective tax rate(No New Revenue) | Q175: =ROUNDDOWN(V112/V114*100,6) -> 0.015263 | S175: =ROUND($V$48*Q175/100,0) -> 365657 | U175: =ROUNDDOWN(($L$48*$F$116/100)-$F$106,0) -> 1572 | V175: 1572 | W175: 1572
A176: Notice & Hearing | C176: =C175 -> 0.015263 | E176: =E175 -> 365657 | G176: =G175 -> 1572 | N176: Notice & Hearing | Q176: =Q175 -> 0.015263 | S176: =S175 -> 365657 | U176: =ROUNDDOWN(($L$48*$F$116/100)-$F$106,0) -> 1572 | V176: 1572 | W176: 1572
A177: Rollback Tax Rate | C177: =ROUNDDOWN(C176*1.08,6) -> 0.016484 | E177: =ROUND(L48*C177/100,0) -> 394909 | G177: =ROUND(($L$48*$F$126/100)-($F$106),0) -> 30825 | H177: =ROUNDDOWN(($L$48*$F$116/100)-($F$106-$F$108),0) -> 1572 | I177: =ROUNDDOWN(($L$48*$F$116/100)-($F$106-$F$108),0) -> 1572 | N177: Rollback Tax Rate(Voter Election Rate) | Q177: =ROUNDDOWN(Q176*1.08,6) -> 0.016484 | S177: =ROUND($V$48*Q177/100,0) -> 394909 | U177: =ROUND(($V$48*V126/100)-($U$106),0) -> 30825 | V177: 1572 | W177: 1572
A178: Proposed Tax Rate | C178: =C175 -> 0.015263 | E178: =E175 -> 365657 | G178: =E178-I171 -> 1573 | H178: =ROUNDDOWN(($L$48*$F$116/100)-($F$106-$F$108),0) -> 1572 | I178: =ROUNDDOWN(($L$48*$F$116/100)-($F$106-$F$108),0) -> 1572
C180: 2022 certified tax value = | F180: =L48 -> 2395708113
O187: 2022 certified tax value = | Q187: =V48 -> 2395708113
N188: *These figures are provided as estimates of possible outcomes resulting from varying the tax rate.
N189: Please be aware that these are only estimates and should not be used alone in making budgetary decisions
N190: **Last year's tax levy is calculated using Texas Property Tax Code's definition of "last year's levy".
N191: ****Tax levy increase is the difference between this year's tax levy and last year's tax levy.
N192: Notice and Hearing Limit is the highest tax rate that may be adopted without notices and a public
N193: hearing. It is the lower of the rollback tax rate
H202: ___________
V208: pg 12

Sheet Sheet2

Sheet Sheet3
